[Event "Titled Tuesday Blitz March 22 Early 2022"]
[White "Sanchez Alvares, Kelvin Antonio"]
[Black "Shtyka, Sergey"]
[WhiteFideId "3906680"]
[BlackFideId "4138465"]
[WhiteElo "2193"]
[BlackElo "2014"]
[Result "0-1"]
[Round "03"]
[TimeControl "180+1"]
[Date "2022.03.22"]
[WhiteClock "0:00:07"]
[BlackClock "0:00:37"]

1. d4 {[%clk 0:03:00]}  c5 {[%clk 0:02:59]} 2. d5 {[%clk 0:03:00]}  e5 {[%clk 0:03:00]} 3. c4 {[%clk 0:02:59]}  d6 {[%clk 0:03:00]} 4. Nc3 {[%clk 0:02:58]}  Be7 {[%clk 0:03:01]} 5. e4 {[%clk 0:02:56]}  Bg5 {[%clk 0:03:01]} 6. Nf3 {[%clk 0:02:52]}  Bxc1 {[%clk 0:03:00]} 7. Rxc1 {[%clk 0:02:52]}  Bg4 {[%clk 0:03:00]} 8. Qa4+ {[%clk 0:02:48]}  Qd7 {[%clk 0:02:52]} 9. Qxd7+ {[%clk 0:02:44]}  Nxd7 {[%clk 0:02:41]} 10. Nd2 {[%clk 0:02:45]}  a6 {[%clk 0:02:31]} 11. h4 {[%clk 0:02:24]}  Ndf6 {[%clk 0:02:22]} 12. a4 {[%clk 0:02:15]}  Ne7 {[%clk 0:02:15]} 13. Bd3 {[%clk 0:02:02]}  Ng6 {[%clk 0:02:11]} 14. g3 {[%clk 0:02:00]}  Bd7 {[%clk 0:02:04]} 15. h5 {[%clk 0:01:56]}  Ne7 {[%clk 0:02:03]} 16. f3 {[%clk 0:01:56]}  h6 {[%clk 0:02:01]} 17. Kf2 {[%clk 0:01:55]}  Rb8 {[%clk 0:01:52]} 18. f4 {[%clk 0:01:34]}  exf4 {[%clk 0:01:20]} 19. gxf4 {[%clk 0:01:32]}  O-O {[%clk 0:01:19]} 20. Kg3 {[%clk 0:01:17]}  Ne8 {[%clk 0:01:12]} 21. e5 {[%clk 0:01:14]}  Nf5+ {[%clk 0:01:07]} 22. Bxf5 {[%clk 0:01:05]}  Bxf5 {[%clk 0:01:07]} 23. Nde4 {[%clk 0:00:53]}  Rd8 {[%clk 0:01:06]} 24. Rhe1 {[%clk 0:00:43]}  g6 {[%clk 0:00:57]} 25. exd6 {[%clk 0:00:37]}  Nxd6 {[%clk 0:00:53]} 26. Nxd6 {[%clk 0:00:37]}  Rxd6 {[%clk 0:00:53]} 27. Re7 {[%clk 0:00:37]}  Rb6 {[%clk 0:00:52]} 28. Nd1 {[%clk 0:00:15]}  Rb3+ {[%clk 0:00:44]} 29. Re3 {[%clk 0:00:14]}  Rb4 {[%clk 0:00:41]} 30. b3 {[%clk 0:00:14]}  gxh5 {[%clk 0:00:39]} 31. Nf2 {[%clk 0:00:11]}  Kh7 {[%clk 0:00:39]} 32. Rcc3 {[%clk 0:00:07]}  Rg8+ {[%clk 0:00:39]} 33. Kh2 {[%clk 0:00:08]}  b5 {[%clk 0:00:38]} 34. cxb5 {[%clk 0:00:06]}  axb5 {[%clk 0:00:39]} 35. Rxc5 {[%clk 0:00:06]}  bxa4 {[%clk 0:00:38]} 36. bxa4 {[%clk 0:00:07]}  Rxf4 {[%clk 0:00:38]} 37. Nd3 {[%clk 0:00:07]}  Rh4+ {[%clk 0:00:37]} 0-1


[Site "https://www.chess.com"]

[Event "Titled Tuesday Blitz March 22 Early 2022"]
[White "Santos Flores, Alberto"]
[Black "Karthikeyan, Murali"]
[WhiteFideId "3601234"]
[BlackFideId "5074452"]
[WhiteElo "2235"]
[BlackElo "2579"]
[Result "0-1"]
[Round "03"]
[TimeControl "180+1"]
[Date "2022.03.22"]
[WhiteClock "0:00:01"]
[BlackClock "0:00:03"]

1. d4 {[%clk 0:03:00]}  Nf6 {[%clk 0:02:59]} 2. Nf3 {[%clk 0:02:56]}  e6 {[%clk 0:02:58]} 3. Bf4 {[%clk 0:02:55]}  c5 {[%clk 0:02:55]} 4. c3 {[%clk 0:02:54]}  d5 {[%clk 0:02:54]} 5. Nbd2 {[%clk 0:02:51]}  Bd6 {[%clk 0:02:54]} 6. Bg3 {[%clk 0:02:49]}  O-O {[%clk 0:02:50]} 7. e3 {[%clk 0:02:49]}  Qe7 {[%clk 0:02:49]} 8. Bd3 {[%clk 0:02:33]}  b6 {[%clk 0:02:46]} 9. O-O {[%clk 0:02:29]}  Ba6 {[%clk 0:02:44]} 10. Bxa6 {[%clk 0:02:26]}  Nxa6 {[%clk 0:02:45]} 11. Qe2 {[%clk 0:02:25]}  Nc7 {[%clk 0:02:41]} 12. Bxd6 {[%clk 0:02:22]}  Qxd6 {[%clk 0:02:42]} 13. Ne5 {[%clk 0:02:22]}  b5 {[%clk 0:02:34]} 14. f4 {[%clk 0:02:07]}  b4 {[%clk 0:02:31]} 15. g4 {[%clk 0:01:59]}  bxc3 {[%clk 0:02:30]} 16. bxc3 {[%clk 0:02:00]}  Rab8 {[%clk 0:02:27]} 17. g5 {[%clk 0:02:00]}  Nd7 {[%clk 0:02:22]} 18. Ndf3 {[%clk 0:01:55]}  Nb5 {[%clk 0:01:53]} 19. Rfc1 {[%clk 0:01:26]}  Na3 {[%clk 0:01:37]} 20. Nxd7 {[%clk 0:01:25]}  Qxd7 {[%clk 0:01:37]} 21. Qa6 {[%clk 0:01:18]}  Nc4 {[%clk 0:01:28]} 22. Ne5 {[%clk 0:01:17]}  Nxe5 {[%clk 0:01:10]} 23. dxe5 {[%clk 0:01:12]}  Rb6 {[%clk 0:01:07]} 24. Qa3 {[%clk 0:00:59]}  Qc6 {[%clk 0:00:30]} 25. Rab1 {[%clk 0:00:56]}  Rfb8 {[%clk 0:00:29]} 26. Rxb6 {[%clk 0:00:49]}  axb6 {[%clk 0:00:19]} 27. Qb2 {[%clk 0:00:46]}  g6 {[%clk 0:00:10]} 28. Rb1 {[%clk 0:00:40]}  b5 {[%clk 0:00:10]} 29. a3 {[%clk 0:00:32]}  h6 {[%clk 0:00:10]} 30. h4 {[%clk 0:00:29]}  hxg5 {[%clk 0:00:10]} 31. hxg5 {[%clk 0:00:28]}  Kg7 {[%clk 0:00:10]} 32. Kf2 {[%clk 0:00:14]}  Qa6 {[%clk 0:00:07]} 33. Rh1 {[%clk 0:00:10]}  Qa4 {[%clk 0:00:07]} 34. Kg3 {[%clk 0:00:07]}  Rh8 {[%clk 0:00:07]} 35. Rxh8 {[%clk 0:00:05]}  Kxh8 {[%clk 0:00:08]} 36. Qh2+ {[%clk 0:00:04]}  Kg8 {[%clk 0:00:09]} 37. Qb2 {[%clk 0:00:03]}  Qc4 {[%clk 0:00:08]} 38. Kf2 {[%clk 0:00:03]}  Kf8 {[%clk 0:00:09]} 39. Kf3 {[%clk 0:00:03]}  Ke7 {[%clk 0:00:09]} 40. Kf2 {[%clk 0:00:04]}  Kd7 {[%clk 0:00:09]} 41. Kf3 {[%clk 0:00:04]}  Kc6 {[%clk 0:00:10]} 42. Kf2 {[%clk 0:00:05]}  Qe4 {[%clk 0:00:09]} 43. Qe2 {[%clk 0:00:03]}  d4 {[%clk 0:00:05]} 44. cxd4 {[%clk 0:00:02]}  cxd4 {[%clk 0:00:06]} 45. Qd2 {[%clk 0:00:01]}  Kd5 {[%clk 0:00:03]} 0-1


[Site "https://www.chess.com"]

[Event "Titled Tuesday Blitz March 22 Early 2022"]
[White "Shuvalova, Polina"]
[Black "Dreev, Aleksey"]
[WhiteFideId "24171760"]
[BlackFideId "4100107"]
[WhiteElo "2355"]
[BlackElo "2625"]
[Result "0-1"]
[Round "03"]
[TimeControl "180+1"]
[Date "2022.03.22"]
[WhiteClock "0:00:10"]
[BlackClock "0:00:11"]

1. d4 {[%clk 0:03:00]}  d5 {[%clk 0:02:59]} 2. Nf3 {[%clk 0:03:00]}  Nf6 {[%clk 0:02:59]} 3. Bf4 {[%clk 0:03:01]}  Bf5 {[%clk 0:02:57]} 4. e3 {[%clk 0:03:00]}  e6 {[%clk 0:02:57]} 5. Nbd2 {[%clk 0:02:55]}  Bd6 {[%clk 0:02:56]} 6. Bxd6 {[%clk 0:02:53]}  Qxd6 {[%clk 0:02:55]} 7. c4 {[%clk 0:02:48]}  O-O {[%clk 0:02:52]} 8. Rc1 {[%clk 0:02:48]}  c6 {[%clk 0:02:36]} 9. Be2 {[%clk 0:02:48]}  h6 {[%clk 0:02:34]} 10. O-O {[%clk 0:02:47]}  Nbd7 {[%clk 0:02:34]} 11. h3 {[%clk 0:02:45]}  Rfe8 {[%clk 0:02:22]} 12. Qb3 {[%clk 0:02:44]}  Rab8 {[%clk 0:02:21]} 13. Rfd1 {[%clk 0:02:44]}  a6 {[%clk 0:02:21]} 14. a4 {[%clk 0:02:33]}  a5 {[%clk 0:02:18]} 15. Bd3 {[%clk 0:02:19]}  Ne4 {[%clk 0:01:46]} 16. Qc2 {[%clk 0:02:18]}  Ndf6 {[%clk 0:01:46]} 17. Ne5 {[%clk 0:02:16]}  Rbd8 {[%clk 0:01:32]} 18. c5 {[%clk 0:02:10]}  Qc7 {[%clk 0:01:32]} 19. Nxe4 {[%clk 0:01:52]}  dxe4 {[%clk 0:01:27]} 20. Bf1 {[%clk 0:01:48]}  Nd5 {[%clk 0:01:27]} 21. g3 {[%clk 0:01:31]}  Bh7 {[%clk 0:01:15]} 22. Bg2 {[%clk 0:01:06]}  f6 {[%clk 0:01:15]} 23. Nc4 {[%clk 0:01:05]}  f5 {[%clk 0:01:16]} 24. Nd6 {[%clk 0:00:56]}  Rf8 {[%clk 0:01:15]} 25. Qc4 {[%clk 0:00:40]}  g5 {[%clk 0:01:14]} 26. Qe2 {[%clk 0:00:33]}  Qg7 {[%clk 0:01:12]} 27. f4 {[%clk 0:00:23]}  gxf4 {[%clk 0:01:08]} 28. gxf4 {[%clk 0:00:23]}  Qg3 {[%clk 0:01:05]} 29. Re1 {[%clk 0:00:23]}  Rd7 {[%clk 0:01:02]} 30. Qf2 {[%clk 0:00:23]}  Qg7 {[%clk 0:00:38]} 31. Kh2 {[%clk 0:00:23]}  Qf6 {[%clk 0:00:37]} 32. Rg1 {[%clk 0:00:23]}  Kh8 {[%clk 0:00:37]} 33. Bf1 {[%clk 0:00:23]}  b6 {[%clk 0:00:34]} 34. Bc4 {[%clk 0:00:22]}  bxc5 {[%clk 0:00:34]} 35. Bxd5 {[%clk 0:00:18]}  Rxd6 {[%clk 0:00:32]} 36. Bc4 {[%clk 0:00:17]}  cxd4 {[%clk 0:00:32]} 37. Rcd1 {[%clk 0:00:15]}  d3 {[%clk 0:00:31]} 38. b3 {[%clk 0:00:15]}  Rd7 {[%clk 0:00:28]} 39. Rg2 {[%clk 0:00:15]}  Rg7 {[%clk 0:00:27]} 40. Rdg1 {[%clk 0:00:16]}  Rxg2+ {[%clk 0:00:26]} 41. Rxg2 {[%clk 0:00:16]}  Rg8 {[%clk 0:00:26]} 42. Qd2 {[%clk 0:00:14]}  Rxg2+ {[%clk 0:00:25]} 43. Kxg2 {[%clk 0:00:15]}  Bg8 {[%clk 0:00:18]} 44. Qxa5 {[%clk 0:00:12]}  Qb2+ {[%clk 0:00:17]} 45. Kg3 {[%clk 0:00:12]}  d2 {[%clk 0:00:17]} 46. Be2 {[%clk 0:00:12]}  e5 {[%clk 0:00:16]} 47. fxe5 {[%clk 0:00:09]}  Qc1 {[%clk 0:00:10]} 48. Kf2 {[%clk 0:00:06]}  d1=Q {[%clk 0:00:09]} 49. Bxd1 {[%clk 0:00:06]}  Qxd1 {[%clk 0:00:09]} 50. Qc3 {[%clk 0:00:07]}  Qxb3 {[%clk 0:00:08]} 51. Qxb3 {[%clk 0:00:04]}  Bxb3 {[%clk 0:00:07]} 52. a5 {[%clk 0:00:04]}  Bc4 {[%clk 0:00:08]} 53. Kg3 {[%clk 0:00:05]}  Kg7 {[%clk 0:00:08]} 54. Kf4 {[%clk 0:00:05]}  Kg6 {[%clk 0:00:08]} 55. h4 {[%clk 0:00:04]}  h5 {[%clk 0:00:09]} 56. Kg3 {[%clk 0:00:05]}  Kf7 {[%clk 0:00:09]} 57. Kf4 {[%clk 0:00:05]}  Ke6 {[%clk 0:00:08]} 58. Kg5 {[%clk 0:00:05]}  Kxe5 {[%clk 0:00:09]} 59. Kxh5 {[%clk 0:00:06]}  f4 {[%clk 0:00:10]} 60. exf4+ {[%clk 0:00:06]}  Kxf4 {[%clk 0:00:10]} 61. Kg6 {[%clk 0:00:07]}  e3 {[%clk 0:00:10]} 62. h5 {[%clk 0:00:07]}  Bd3+ {[%clk 0:00:10]} 63. Kg7 {[%clk 0:00:07]}  e2 {[%clk 0:00:11]} 64. a6 {[%clk 0:00:08]}  Bxa6 {[%clk 0:00:10]} 65. h6 {[%clk 0:00:08]}  Bd3 {[%clk 0:00:10]} 66. h7 {[%clk 0:00:09]}  Bxh7 {[%clk 0:00:10]} 67. Kxh7 {[%clk 0:00:10]}  e1=Q {[%clk 0:00:11]} 0-1


[Site "https://www.chess.com"]

[Event "Titled Tuesday Blitz March 22 Early 2022"]
[White "Silva, Kaua Marques"]
[Black "Mikhailovsky, Vladimir"]
[WhiteFideId "22701168"]
[BlackFideId "34105414"]
[WhiteElo "2071"]
[BlackElo "2371"]
[Result "0-1"]
[Round "03"]
[TimeControl "180+1"]
[Date "2022.03.22"]
[WhiteClock "0:00:07"]
[BlackClock "0:00:39"]

1. e4 {[%clk 0:03:00]}  Nf6 {[%clk 0:03:00]} 2. e5 {[%clk 0:02:55]}  Nd5 {[%clk 0:03:00]} 3. d4 {[%clk 0:02:56]}  d6 {[%clk 0:03:01]} 4. Nf3 {[%clk 0:02:54]}  dxe5 {[%clk 0:03:00]} 5. Nxe5 {[%clk 0:02:53]}  c6 {[%clk 0:02:59]} 6. Bc4 {[%clk 0:02:51]}  Bf5 {[%clk 0:02:59]} 7. O-O {[%clk 0:02:48]}  e6 {[%clk 0:02:56]} 8. Re1 {[%clk 0:02:47]}  Be7 {[%clk 0:02:55]} 9. Nc3 {[%clk 0:02:46]}  O-O {[%clk 0:02:54]} 10. Nxd5 {[%clk 0:02:45]}  cxd5 {[%clk 0:02:22]} 11. Bd3 {[%clk 0:02:46]}  Bxd3 {[%clk 0:02:19]} 12. Qxd3 {[%clk 0:02:47]}  Nc6 {[%clk 0:02:20]} 13. c3 {[%clk 0:02:47]}  Rb8 {[%clk 0:02:19]} 14. a3 {[%clk 0:02:46]}  Nxe5 {[%clk 0:02:18]} 15. Rxe5 {[%clk 0:02:45]}  b5 {[%clk 0:02:18]} 16. Bd2 {[%clk 0:02:44]}  a5 {[%clk 0:02:18]} 17. g3 {[%clk 0:02:43]}  b4 {[%clk 0:02:16]} 18. axb4 {[%clk 0:02:42]}  axb4 {[%clk 0:02:17]} 19. c4 {[%clk 0:02:38]}  Bf6 {[%clk 0:02:13]} 20. Bf4 {[%clk 0:02:15]}  dxc4 {[%clk 0:02:08]} 21. Qxc4 {[%clk 0:02:14]}  Bxe5 {[%clk 0:02:09]} 22. Bxe5 {[%clk 0:02:15]}  Rb7 {[%clk 0:02:04]} 23. Ra6 {[%clk 0:02:05]}  b3 {[%clk 0:01:55]} 24. Rc6 {[%clk 0:02:02]}  Qd5 {[%clk 0:01:51]} 25. Qc1 {[%clk 0:01:56]}  f6 {[%clk 0:01:42]} 26. Rd6 {[%clk 0:01:56]}  Qe4 {[%clk 0:01:28]} 27. Bf4 {[%clk 0:01:54]}  Qc2 {[%clk 0:01:20]} 28. Rxe6 {[%clk 0:01:25]}  Qxc1+ {[%clk 0:01:20]} 29. Bxc1 {[%clk 0:01:26]}  Rc8 {[%clk 0:01:20]} 30. Re1 {[%clk 0:01:05]}  Rc2 {[%clk 0:01:10]} 31. Rd1 {[%clk 0:01:01]}  Ra7 {[%clk 0:01:07]} 32. Be3 {[%clk 0:00:18]}  Rxb2 {[%clk 0:01:06]} 33. d5 {[%clk 0:00:18]}  Rd7 {[%clk 0:01:06]} 34. Rd3 {[%clk 0:00:14]}  Rb1+ {[%clk 0:01:03]} 35. Kg2 {[%clk 0:00:14]}  Kf7 {[%clk 0:01:02]} 36. Bc5 {[%clk 0:00:10]}  b2 {[%clk 0:00:39]} 37. Rb3 {[%clk 0:00:06]}  Rc1 {[%clk 0:00:39]} 38. Ba3 {[%clk 0:00:07]}  b1=Q {[%clk 0:00:39]} 0-1


[Site "https://www.chess.com"]

[Event "Titled Tuesday Blitz March 22 Early 2022"]
[White "Tanenbaum, Zachary"]
[Black "Garagulya, Konstantin"]
[WhiteFideId "2060850"]
[BlackFideId "4128931"]
[WhiteElo "2168"]
[BlackElo "2329"]
[Result "0-1"]
[Round "03"]
[TimeControl "180+1"]
[Date "2022.03.22"]
[WhiteClock "0:00:01"]
[BlackClock "0:00:12"]

1. e4 {[%clk 0:03:00]}  c5 {[%clk 0:02:51]} 2. Nf3 {[%clk 0:03:00]}  a6 {[%clk 0:02:51]} 3. Nc3 {[%clk 0:02:59]}  b5 {[%clk 0:02:51]} 4. d4 {[%clk 0:02:57]}  cxd4 {[%clk 0:02:52]} 5. Nxd4 {[%clk 0:02:57]}  Bb7 {[%clk 0:02:52]} 6. Bd3 {[%clk 0:02:54]}  g6 {[%clk 0:02:51]} 7. O-O {[%clk 0:02:54]}  Bg7 {[%clk 0:02:52]} 8. Be3 {[%clk 0:02:53]}  d6 {[%clk 0:02:52]} 9. f4 {[%clk 0:02:50]}  Nd7 {[%clk 0:02:52]} 10. a4 {[%clk 0:02:24]}  bxa4 {[%clk 0:02:49]} 11. Nxa4 {[%clk 0:02:16]}  Ngf6 {[%clk 0:02:49]} 12. Nc3 {[%clk 0:02:07]}  O-O {[%clk 0:02:48]} 13. Qf3 {[%clk 0:01:46]}  Nc5 {[%clk 0:02:39]} 14. f5 {[%clk 0:01:35]}  Qd7 {[%clk 0:01:59]} 15. b4 {[%clk 0:01:20]}  Nxd3 {[%clk 0:01:57]} 16. cxd3 {[%clk 0:01:21]}  Rac8 {[%clk 0:01:56]} 17. Na4 {[%clk 0:01:18]}  Qc7 {[%clk 0:01:20]} 18. b5 {[%clk 0:01:18]}  axb5 {[%clk 0:01:16]} 19. Nxb5 {[%clk 0:00:54]}  Qc2 {[%clk 0:01:16]} 20. Nb6 {[%clk 0:00:53]}  Rb8 {[%clk 0:01:01]} 21. Rfd1 {[%clk 0:00:36]}  Nxe4 {[%clk 0:00:56]} 22. Rac1 {[%clk 0:00:26]}  Qb3 {[%clk 0:00:53]} 23. Rb1 {[%clk 0:00:25]}  Qc2 {[%clk 0:00:49]} 24. dxe4 {[%clk 0:00:23]}  Bxe4 {[%clk 0:00:47]} 25. Qf1 {[%clk 0:00:16]}  Bxf5 {[%clk 0:00:41]} 26. Nd4 {[%clk 0:00:16]}  Bxd4 {[%clk 0:00:33]} 27. Bxd4 {[%clk 0:00:16]}  Rb7 {[%clk 0:00:22]} 28. Rbc1 {[%clk 0:00:11]}  Qe4 {[%clk 0:00:20]} 29. Nc4 {[%clk 0:00:08]}  Rfb8 {[%clk 0:00:18]} 30. Ne3 {[%clk 0:00:08]}  Be6 {[%clk 0:00:17]} 31. Bc3 {[%clk 0:00:07]}  f6 {[%clk 0:00:17]} 32. Re1 {[%clk 0:00:07]}  Rb3 {[%clk 0:00:16]} 33. Nc2 {[%clk 0:00:06]}  Qd5 {[%clk 0:00:14]} 34. Nd4 {[%clk 0:00:07]}  Rxc3 {[%clk 0:00:13]} 35. Rxc3 {[%clk 0:00:03]}  Qxd4+ {[%clk 0:00:13]} 36. Rce3 {[%clk 0:00:04]}  Bf7 {[%clk 0:00:12]} 37. Qf2 {[%clk 0:00:04]}  e5 {[%clk 0:00:12]} 38. h3 {[%clk 0:00:04]}  Kg7 {[%clk 0:00:10]} 39. Rf1 {[%clk 0:00:04]}  f5 {[%clk 0:00:11]} 40. Rfe1 {[%clk 0:00:04]}  Rb4 {[%clk 0:00:11]} 41. R3e2 {[%clk 0:00:04]}  Qb6 {[%clk 0:00:11]} 42. Qxb6 {[%clk 0:00:04]}  Rxb6 {[%clk 0:00:11]} 43. Rd2 {[%clk 0:00:04]}  Kf6 {[%clk 0:00:11]} 44. Kf2 {[%clk 0:00:05]}  d5 {[%clk 0:00:12]} 45. g3 {[%clk 0:00:04]}  d4 {[%clk 0:00:12]} 46. Rc2 {[%clk 0:00:04]}  Rd6 {[%clk 0:00:13]} 47. Rc5 {[%clk 0:00:03]}  e4 {[%clk 0:00:12]} 48. Rd1 {[%clk 0:00:04]}  g5 {[%clk 0:00:12]} 49. h4 {[%clk 0:00:03]}  h6 {[%clk 0:00:12]} 50. hxg5+ {[%clk 0:00:03]}  hxg5 {[%clk 0:00:13]} 51. g4 {[%clk 0:00:04]}  Bg6 {[%clk 0:00:13]} 52. gxf5 {[%clk 0:00:04]}  Bxf5 {[%clk 0:00:14]} 53. Kg3 {[%clk 0:00:04]}  Kg6 {[%clk 0:00:13]} 54. Rc4 {[%clk 0:00:04]}  d3 {[%clk 0:00:13]} 55. Kf2 {[%clk 0:00:04]}  Kf6 {[%clk 0:00:12]} 56. Ke3 {[%clk 0:00:05]}  Ke5 {[%clk 0:00:12]} 57. Rf1 {[%clk 0:00:03]}  Rd5 {[%clk 0:00:12]} 58. Rd1 {[%clk 0:00:03]}  g4 {[%clk 0:00:12]} 59. Rd2 {[%clk 0:00:03]}  g3 {[%clk 0:00:12]} 60. Rc7 {[%clk 0:00:02]}  Rd6 {[%clk 0:00:11]} 61. Re7+ {[%clk 0:00:01]}  Re6 {[%clk 0:00:11]} 62. Rg7 {[%clk 0:00:01]}  Rg6 {[%clk 0:00:12]} 63. Rxg6 {[%clk 0:00:01]}  Bxg6 {[%clk 0:00:12]} 64. Rg2 {[%clk 0:00:02]}  Bh5 {[%clk 0:00:11]} 65. Rxg3 {[%clk 0:00:01]}  Bf3 {[%clk 0:00:12]} 66. Rg1 {[%clk 0:00:01]}  Kd5 {[%clk 0:00:12]} 0-1


[Site "https://www.chess.com"]

[Event "Titled Tuesday Blitz March 22 Early 2022"]
[White "Tasev, Dejan"]
[Black "Kulkarni, Rakesh"]
[WhiteFideId "936618"]
[BlackFideId "5037077"]
[WhiteElo "2253"]
[BlackElo "2246"]
[Result "0-1"]
[Round "03"]
[TimeControl "180+1"]
[Date "2022.03.22"]
[WhiteClock "0:00:17"]
[BlackClock "0:00:39"]

1. e4 {[%clk 0:03:00]}  c5 {[%clk 0:02:59]} 2. Nf3 {[%clk 0:03:00]}  e6 {[%clk 0:02:58]} 3. Nc3 {[%clk 0:03:00]}  a6 {[%clk 0:02:58]} 4. g3 {[%clk 0:03:00]}  b5 {[%clk 0:02:56]} 5. Bg2 {[%clk 0:03:00]}  Bb7 {[%clk 0:02:56]} 6. d3 {[%clk 0:03:00]}  Nf6 {[%clk 0:02:56]} 7. O-O {[%clk 0:03:00]}  d5 {[%clk 0:02:57]} 8. exd5 {[%clk 0:03:00]}  Nxd5 {[%clk 0:02:57]} 9. Nxd5 {[%clk 0:02:58]}  Bxd5 {[%clk 0:02:58]} 10. a4 {[%clk 0:02:58]}  Be7 {[%clk 0:02:58]} 11. axb5 {[%clk 0:02:57]}  axb5 {[%clk 0:02:59]} 12. Rxa8 {[%clk 0:02:57]}  Bxa8 {[%clk 0:03:00]} 13. b3 {[%clk 0:02:56]}  O-O {[%clk 0:02:59]} 14. Bb2 {[%clk 0:02:54]}  Bf6 {[%clk 0:02:59]} 15. Qa1 {[%clk 0:02:54]}  Bxb2 {[%clk 0:02:54]} 16. Qxb2 {[%clk 0:02:53]}  Nc6 {[%clk 0:02:53]} 17. Ra1 {[%clk 0:02:52]}  Bb7 {[%clk 0:02:47]} 18. Qc3 {[%clk 0:02:50]}  Qd6 {[%clk 0:02:45]} 19. Qe1 {[%clk 0:02:42]}  h6 {[%clk 0:02:42]} 20. Nd2 {[%clk 0:02:39]}  Nd4 {[%clk 0:02:28]} 21. Ra2 {[%clk 0:02:22]}  Bxg2 {[%clk 0:02:27]} 22. Kxg2 {[%clk 0:02:21]}  f5 {[%clk 0:02:22]} 23. f4 {[%clk 0:02:14]}  Qd5+ {[%clk 0:02:11]} 24. Kf2 {[%clk 0:02:12]}  Re8 {[%clk 0:02:11]} 25. Qe5 {[%clk 0:02:03]}  Qh1 {[%clk 0:01:57]} 26. Ra7 {[%clk 0:01:49]}  Qxh2+ {[%clk 0:01:56]} 27. Kf1 {[%clk 0:01:37]}  Qh1+ {[%clk 0:01:55]} 28. Kf2 {[%clk 0:01:36]}  Qh2+ {[%clk 0:01:55]} 29. Kf1 {[%clk 0:01:32]}  Qxg3 {[%clk 0:01:51]} 30. Qc7 {[%clk 0:01:21]}  Rf8 {[%clk 0:01:39]} 31. Qe7 {[%clk 0:00:51]}  Qxf4+ {[%clk 0:01:22]} 32. Kg1 {[%clk 0:00:40]}  Qg4+ {[%clk 0:01:17]} 33. Kh2 {[%clk 0:00:31]}  Rf6 {[%clk 0:01:08]} 34. Ra8+ {[%clk 0:00:26]}  Kh7 {[%clk 0:01:07]} 35. Qe8 {[%clk 0:00:26]}  Qh4+ {[%clk 0:00:51]} 36. Kg1 {[%clk 0:00:24]}  Rg6+ {[%clk 0:00:52]} 37. Kf1 {[%clk 0:00:20]}  Qf4+ {[%clk 0:00:41]} 38. Ke1 {[%clk 0:00:18]}  Rg1+ {[%clk 0:00:39]} 39. Nf1 {[%clk 0:00:17]}  Rxf1# {[%clk 0:00:39]} 0-1


[Site "https://www.chess.com"]

[Event "Titled Tuesday Blitz March 22 Early 2022"]
[White "Tay, Junior"]
[Black "Harish, Neeraj"]
[WhiteFideId "5800439"]
[BlackFideId "30958130"]
[WhiteElo "2216"]
[BlackElo "1574"]
[Result "1-0"]
[Round "03"]
[TimeControl "180+1"]
[Date "2022.03.22"]
[WhiteClock "0:02:41"]
[BlackClock "0:01:39"]

1. e4 {[%clk 0:03:00]}  c5 {[%clk 0:02:59]} 2. Nf3 {[%clk 0:03:00]}  d6 {[%clk 0:02:57]} 3. d4 {[%clk 0:03:00]}  cxd4 {[%clk 0:02:57]} 4. Nxd4 {[%clk 0:03:01]}  Nf6 {[%clk 0:02:58]} 5. Nc3 {[%clk 0:03:02]}  a6 {[%clk 0:02:57]} 6. f4 {[%clk 0:03:02]}  e5 {[%clk 0:02:51]} 7. Nf3 {[%clk 0:03:03]}  Nc6 {[%clk 0:02:47]} 8. Bd3 {[%clk 0:03:04]}  Be7 {[%clk 0:02:46]} 9. O-O {[%clk 0:03:05]}  O-O {[%clk 0:02:45]} 10. Kh1 {[%clk 0:03:05]}  exf4 {[%clk 0:02:43]} 11. Bxf4 {[%clk 0:03:05]}  Be6 {[%clk 0:02:43]} 12. Nd5 {[%clk 0:02:48]}  Re8 {[%clk 0:01:57]} 13. Nxe7+ {[%clk 0:02:44]}  Rxe7 {[%clk 0:01:56]} 14. Bg5 {[%clk 0:02:44]}  Rd7 {[%clk 0:01:51]} 15. Qe1 {[%clk 0:02:44]}  d5 {[%clk 0:01:39]} 16. e5 {[%clk 0:02:41]} 1-0


[Site "https://www.chess.com"]

[Event "Titled Tuesday Blitz March 22 Early 2022"]
[White "Terry, Renato"]
[Black "Manolache, Marius"]
[WhiteFideId "3803457"]
[BlackFideId "1201530"]
[WhiteElo "2577"]
[BlackElo "2389"]
[Result "1-0"]
[Round "03"]
[TimeControl "180+1"]
[Date "2022.03.22"]
[WhiteClock "0:00:12"]
[BlackClock "0:00:17"]

1. d4 {[%clk 0:02:59]}  Nf6 {[%clk 0:02:55]} 2. Bg5 {[%clk 0:02:59]}  e6 {[%clk 0:02:54]} 3. e4 {[%clk 0:02:58]}  h6 {[%clk 0:02:53]} 4. Bxf6 {[%clk 0:02:59]}  Qxf6 {[%clk 0:02:52]} 5. c3 {[%clk 0:02:59]}  d6 {[%clk 0:02:52]} 6. Bd3 {[%clk 0:02:59]}  g5 {[%clk 0:02:51]} 7. Ne2 {[%clk 0:02:59]}  h5 {[%clk 0:02:51]} 8. O-O {[%clk 0:02:58]}  h4 {[%clk 0:02:49]} 9. f4 {[%clk 0:02:50]}  Bd7 {[%clk 0:02:36]} 10. Nd2 {[%clk 0:02:49]}  Nc6 {[%clk 0:02:34]} 11. e5 {[%clk 0:02:48]}  Qg7 {[%clk 0:02:29]} 12. Ne4 {[%clk 0:02:45]}  O-O-O {[%clk 0:02:28]} 13. exd6 {[%clk 0:02:20]}  Bxd6 {[%clk 0:02:22]} 14. fxg5 {[%clk 0:02:18]}  Rdg8 {[%clk 0:02:09]} 15. Rf2 {[%clk 0:02:12]}  Ne7 {[%clk 0:02:02]} 16. Qd2 {[%clk 0:01:23]}  Nf5 {[%clk 0:01:56]} 17. Raf1 {[%clk 0:01:19]}  Bc6 {[%clk 0:01:55]} 18. Nf6 {[%clk 0:00:55]}  Qxg5 {[%clk 0:01:50]} 19. Qxg5 {[%clk 0:00:54]}  Rxg5 {[%clk 0:01:49]} 20. d5 {[%clk 0:00:50]}  Bd7 {[%clk 0:00:59]} 21. dxe6 {[%clk 0:00:40]}  fxe6 {[%clk 0:00:59]} 22. Nxd7 {[%clk 0:00:39]}  Kxd7 {[%clk 0:00:56]} 23. Bxf5 {[%clk 0:00:39]}  exf5 {[%clk 0:00:55]} 24. Rxf5 {[%clk 0:00:40]}  Bc5+ {[%clk 0:00:54]} 25. Nd4 {[%clk 0:00:38]}  Bxd4+ {[%clk 0:00:53]} 26. cxd4 {[%clk 0:00:38]}  Rhg8 {[%clk 0:00:54]} 27. Rxg5 {[%clk 0:00:33]}  Rxg5 {[%clk 0:00:53]} 28. h3 {[%clk 0:00:34]}  c5 {[%clk 0:00:50]} 29. dxc5 {[%clk 0:00:30]}  Rxc5 {[%clk 0:00:49]} 30. Rf4 {[%clk 0:00:29]}  Rc2 {[%clk 0:00:49]} 31. Rxh4 {[%clk 0:00:25]}  Rxb2 {[%clk 0:00:49]} 32. Ra4 {[%clk 0:00:25]}  a6 {[%clk 0:00:47]} 33. h4 {[%clk 0:00:25]}  Ke6 {[%clk 0:00:47]} 34. Kh2 {[%clk 0:00:24]}  Rb1 {[%clk 0:00:45]} 35. Kh3 {[%clk 0:00:20]}  Kf6 {[%clk 0:00:45]} 36. Kg4 {[%clk 0:00:20]}  Kg6 {[%clk 0:00:45]} 37. g3 {[%clk 0:00:20]}  Rc1 {[%clk 0:00:44]} 38. Rd4 {[%clk 0:00:19]}  Rc2 {[%clk 0:00:40]} 39. Rd6+ {[%clk 0:00:19]}  Kg7 {[%clk 0:00:39]} 40. Rd7+ {[%clk 0:00:19]}  Kh6 {[%clk 0:00:39]} 41. Rxb7 {[%clk 0:00:20]}  Rxa2 {[%clk 0:00:38]} 42. Rb6+ {[%clk 0:00:19]}  Kh7 {[%clk 0:00:38]} 43. h5 {[%clk 0:00:18]}  Ra1 {[%clk 0:00:34]} 44. Rb7+ {[%clk 0:00:18]}  Kh6 {[%clk 0:00:34]} 45. Rb6+ {[%clk 0:00:19]}  Kh7 {[%clk 0:00:34]} 46. Kg5 {[%clk 0:00:20]}  Ra5+ {[%clk 0:00:34]} 47. Kh4 {[%clk 0:00:18]}  Ra1 {[%clk 0:00:34]} 48. g4 {[%clk 0:00:18]}  Ra5 {[%clk 0:00:33]} 49. Rb7+ {[%clk 0:00:18]}  Kg8 {[%clk 0:00:33]} 50. h6 {[%clk 0:00:18]}  Rb5 {[%clk 0:00:32]} 51. Ra7 {[%clk 0:00:17]}  a5 {[%clk 0:00:31]} 52. g5 {[%clk 0:00:17]}  Kh8 {[%clk 0:00:28]} 53. g6 {[%clk 0:00:17]}  Rb8 {[%clk 0:00:27]} 54. Kh5 {[%clk 0:00:12]}  Rb5+ {[%clk 0:00:27]} 55. Kg4 {[%clk 0:00:13]}  Rb8 {[%clk 0:00:27]} 56. h7 {[%clk 0:00:12]}  a4 {[%clk 0:00:19]} 57. Kg5 {[%clk 0:00:12]}  Rb1 {[%clk 0:00:17]} 58. Ra8+ {[%clk 0:00:12]}  Kg7 {[%clk 0:00:17]} 59. h8=Q# {[%clk 0:00:12]} 1-0


[Site "https://www.chess.com"]